{"text_format":"1","workbook":"xlsx","n_sheets":7,"sheets":["Vnos podatkov","Enoobmočne tehtnice","Dvoobmočne tehtnice","Troobmočne tehtnice","Dvorazdelčne tehtnice","Trorazdelčne tehtnice","Tabelle1"],"not_rendered":{"charts":0,"images":0,"macros":1,"external_links":0,"defined_names":7,"comments":1,"pivot_tables":0},"unopened":[],"bounds":{"document_bytes":16777216,"sheet_cells":100000,"rows_first":2000,"rows_last":500,"rows_between":2000,"halvings":0,"cell_chars":16384,"cell_head_chars":4096},"cells_cut":0,"cells_raw":0,"read":"whole","date_system":"1900"}

{"sheet":"Vnos podatkov","index":0,"n_rows":53,"n_cols":10,"rows_kept":53,"cut":false,"hidden":false,"merged":[[40,0,40,1],[32,6,32,7],[36,6,36,7],[37,6,37,7],[38,6,38,7],[26,0,26,1],[31,0,31,1],[29,0,29,1],[28,6,28,7],[31,6,31,7],[46,0,46,1],[33,0,33,1],[37,0,37,1],[27,6,27,7],[43,0,43,1],[13,2,13,3],[16,6,16,7],[17,6,17,7],[25,6,25,7],[26,6,26,7],[19,6,19,7],[11,2,11,3],[11,0,11,1],[13,0,13,1],[24,6,24,7],[18,0,18,1],[22,0,22,1],[18,6,18,7],[21,6,21,7],[22,6,22,7],[12,2,12,3],[33,6,33,7],[35,6,35,7],[39,6,39,7],[44,6,44,7],[3,2,3,8],[14,6,14,7],[15,6,15,7],[4,2,4,8],[5,2,5,8],[9,6,9,7],[46,6,46,7],[48,6,48,7],[40,6,40,7],[41,6,41,7],[42,6,42,7],[43,6,43,7]]}
["Urad RS za meroslovje"]
["PRERAČUN SKLADNOSTI MODULOV za NEAVTOMATSKE TEHTNICE"]
[]
["Proizvajalec:"]
[]
[]
[]
["a) Meroslovni in tehnični podatki :",null,null,null,true]
[]
["Tehtnica (WI)",null,"razred točnosti",null,"Razred",null,null,null,"-"]
["Serijska številka:",null,"največja zmogljivost","preskusni razdelek",null,null,null,null,"kg","kg"]
[null,null,null,null,"Max1","e1",null,null,"kg","kg"]
["Tip:",null,null,null,"Max2","e2",null,null,"kg","kg"]
[null,null," ",null,"Max3","e3",null,null,"kg","kg"]
[null,null,"redukcijsko razmerje vzvodja",null,"R",null,null,null,"-"]
[null,null,"število merilnih celic",null,"N",null,null,null,"-"]
["ES certifikat o",null,"območje začetnega ničliranja",null,"IZSR",null,null,null,"kg"]
["odobritvi tipa (EC TAC):",null,"korekcija zaradi neenakomerno naloženega bremena",null,"NUD",null,null,null,"kg"]
[null,null,"mrtvo breme sprejemnika bremena",null,"DL",null,null,null,"kg"]
[null,null,"prištevalna tara",null,"T+",null,null,null,"kg"]
[null,null,"temperaturno območja",null,"Tmin","Tmax",null,null,"° C","° C"]
["Lastnik ES certifikata:",null,"dolžina povezovalnega kabla",null,"L",null,null,null,"m"]
[null,null,"površina preseka kabla",null,"A",null,null,null,"mm2"]
["Auswertegerät (AWG)"]
["Elektronska naprava",null,"razred točnosti",null,"razred",null,null,null,"-"]
["Proizvajalec:",null,"največje število preskusnih razdelkov",null,"nind",null,null,null,"-"]
[null,null,"napajalna napetost merilnih celic",null,"Uexc",null,null,null,"V"]
[null,null,"najman. dopustni vhodni signal v elektron. napravo",null,"Usignal",null,null,null,"mV"]
[" Tip:",null,"najmanjši vhodni signal na preskusni razdelek",null,"Dumin",null,null,null,"mV"]
[null,null,"najmanjša/največja upornost merilnih celic",null,"RLmin","RLmax",null,null,"W","W"]
["Preskusni certifikat (TC):",null,"temperaturno območje",null,"Tmin","Tmax",null,null,"° C","° C"]
[null,null,"delež največjega dopustnega pogreška",null,"pind",null,null,null,"-"]
["ali certifikat o odobritvi tipa (TAC):",null,"priključni kabel (4- ali 6 žilni)",null,"število žil",null,null,null,"-"]
[null,null,"največja dolžina kabla na površino preseka",null,"(L/A)max",null,null,null,"m/mm2"]
[]
["Merilne celice  (LC)",null,"razred točnosti",null,"razred",null,null,null,"-"]
["Proizvajalec :",null,"največja zmogljivost",null,"Emax",null,null,null,"kg"]
[null,null,"najmanjše mrtvo breme",null,"Emin",null,null,null,"kg"]
[null,null,"občutljivost (nazivni izhodni signal)",null,"C",null,null,null,"mV/V"]
[" Tip:",null,"največje število preskusnih razdelkov",null,"nLC",null,null,null,"-"]
[null,null,"najmanši preskusni razdelek     ali",null,"vmin",null,null,null,"kg"]
[null,null,"razmerje Y = E max / v min",null,"Y",null,null,null,"-"]
["Preskusni certifikat (TC):",null,"razmerje Z = E max / (2 DR)    ali",null,"Z",null,null,null,"-"]
[null,null,"najmanjši izhodni signal pri mrvem bremenu ",null,"DR",null,null,null,"kg"]
[null,null,"vhodna upornost posamezne merilne celice",null,"RLC",null,null,null,"W"]
["ali certifikat o odobritvi tipa (TAC):",null,"meje temperaturnega območja",null,"Tmin","Tmax",null,null,"° C","° C"]
[null,null,"delež nejvečjega dopustnega pogreška",null,"pLC",null,null,null,"-"]
["Verbindungselemente"]
["Povezovalni elementi",null,"delež največjega dopustnega pogreška",null,"pcon",null,null,null,"-"]
[]
[null,null,null,null,null,null,null,null,null,"stan 1 od  6"]
["Obrazec:","OB-OVM 5.10-10"]
["Izdaja",2]

{"sheet":"Enoobmočne tehtnice","index":1,"n_rows":84,"n_cols":9,"rows_kept":84,"cut":false,"hidden":true,"merged":[[34,3,34,4],[32,0,32,5],[69,3,69,4],[70,3,70,4],[52,3,52,4],[47,3,47,4],[66,3,66,4],[67,3,67,4]]}
["Urad RS za meroslovje"]
[]
[]
["b) Pregled skladnosti - Enoobmočne tehtnice"]
[]
["(1) Razred točnosti tehtnice (WI) združljiv z razredom elektronske naprave (IND) in merilnih(e) celic(e) (LC)"]
[null,{"$f":"IF(B9=\"\",5,IF('Vnos podatkov'!G36=\"A\",1,IF('Vnos podatkov'!G36=\"B\",2,IF('Vnos podatkov'!G36=\"C\",3,IF('Vnos podatkov'!G36=\"D\",4,0)))))","v":5},null,{"$f":"IF(D9=\"\",5,IF('Vnos podatkov'!G25=\"I\",1,IF('Vnos podatkov'!G25=\"II\",2,IF('Vnos podatkov'!G25=\"III\",3,IF('Vnos podatkov'!G25=\"IIII\",4,0)))))","v":5},null,null,{"$f":"IF(G9=\"\",0,IF('Vnos podatkov'!G10=\"I\",1,IF('Vnos podatkov'!G10=\"II\",2,IF('Vnos podatkov'!G10=\"III\",3,IF('Vnos podatkov'!G10=\"IIII\",4,0)))))","v":0}]
[null,"LC","&","IND","enako ali bolje",null,"WI"]
[null,{"$f":"IF('Vnos podatkov'!$G$36=\"\",\"\",'Vnos podatkov'!$G$36)","v":""},"&",{"$f":"IF('Vnos podatkov'!$G$25=\"\",\"\",'Vnos podatkov'!$G$25)","v":""},"enako ali bolje",null,{"$f":"IF('Vnos podatkov'!$G$10=\"\",\"\",'Vnos podatkov'!$G$10)","v":""},null,{"$f":"IF($G$7=0,\"NE\",IF($B$7>$G$7,\"NE\",IF($D$7>$G$7,\"NE\",\"DA\")))","v":"NE"}]
[]
["(2) Temperaturno območje tehtnice (WI) v primerjavi s temp. območjem elektronske naprave (IND) in merilnih celic (LC) "]
[]
[null,null,"LC",null,"IND",null,"WI"]
[null,"Tmin",{"$f":"IF('Vnos podatkov'!$G$46=\"\",\"\",'Vnos podatkov'!$G$46)","v":""},"&",{"$f":"IF('Vnos podatkov'!$G$31=\"\",\"\",'Vnos podatkov'!$G$31)","v":""},"£",{"$f":"IF('Vnos podatkov'!$G$21=\"\",\"\",'Vnos podatkov'!$G$21)","v":""},null,{"$f":"IF(OR($G$14=\"\",$G$14>100),\"NE\",IF($C$14>$G$14,\"NE\",IF($E$14>$G$14,\"NE\",\"DA\")))","v":"NE"}]
[null,"Tmax",{"$f":"IF('Vnos podatkov'!$H$46=\"\",\"\",'Vnos podatkov'!$H$46)","v":""},"&",{"$f":"IF('Vnos podatkov'!$H$31=\"\",\"\",'Vnos podatkov'!$H$31)","v":""},"³",{"$f":"IF('Vnos podatkov'!$H$21=\"\",\"\",'Vnos podatkov'!$H$21)","v":""},null,{"$f":"IF(OR($C15>150,$E$15>100),\"NE\",IF($G$15=\"\",\"NE\",IF($C$15<$G$15,\"NE\",IF($E$15<$G$15,\"NE\",\"DA\"))))","v":"NE"}]
[]
["(3) Vsota kvadratov deležev pi najv. dop. pogreška merilnih celic (LC), povezovalnih elem. in elektr. naprave"]
[]
[null,"pcon2","+","pind2","+","pLC2","£ 1"]
[null,{"$f":"IF('Vnos podatkov'!$G$49=\"\",\"\",'Vnos podatkov'!$G$49^2)","v":""},"+",{"$f":"IF('Vnos podatkov'!$G$32=\"\",\"\",'Vnos podatkov'!$G$32^2)","v":""},"+",{"$f":"IF('Vnos podatkov'!$G$47=\"\",\"\",'Vnos podatkov'!$G$47^2)","v":""},"£ 1",null,{"$f":"IF(OR($F$20=\"\",$F$20>(0.8)^2,$F$20<(0.3)^2,$D$20=\"\",$D$20>(0.8)^2,$D$20<(0.3)^2,$B$20=\"\"),\"NE\",IF($B$20+$D$20+$F$20>1,\"NE\",\"DA\"))","v":"NE"}]
[]
["(4) Število preskusnih razdelkov tehtnice ne sme preseči največjega števila preskusnih razdelkov elekronske naprave"]
[]
[null,null,null,null,"nind","³","n=Max/e"]
[null,null,"Enoobmočna tehtnica",null,{"$f":"IF('Vnos podatkov'!$G$26=\"\",\"\",'Vnos podatkov'!$G$26)","v":""},"³",{"$f":"IF('Vnos podatkov'!$H$11=\"\",\"\",IF('Vnos podatkov'!$H$11=0,\"\",'Vnos podatkov'!$G$11/'Vnos podatkov'!$H$11))","v":""},null,{"$f":"IF(OR($E$25=\"\",$E$25>100000000,$G$25=\"\"),\"NE\",IF($G$25>$E$25,\"NE\",\"DA\"))","v":"NE"}]
[null," Mehrteilungs- ",null,"i = 1",0,"³",0]
[null," oder Mehrbereichswaage",null,"i = 2",0,"³",0]
[null,null,null,"i = 3",0,"³",0]
[]
[]
["(5) Največja zmogljivost merilnih celic (LC) mora biti združljiva z Max tehtnice "]
[]
["Faktor Q  (EN 45 501 No 4.12.1):   Q = (Max+DL+IZSR+NUD+T+)/Max =",null,null,null,null,null,{"$f":"IF('Vnos podatkov'!$G$19=\"\",\"zahteva se DL\",IF('Vnos podatkov'!$G$18=\"\",\"zahteva se NUD\",IF('Vnos podatkov'!$G$17=\"\",\"zahteva se IZRS\",IF('Vnos podatkov'!$G$11=\"\",\"\",IF('Vnos podatkov'!$G$11=0,\"\",('Vnos podatkov'!$G$11+'Vnos podatkov'!$G$17+'Vnos podatkov'!$G$18+'Vnos podatkov'!$G$19+'Vnos podatkov'!$G$20)/'Vnos podatkov'!$G$11)))))","v":"zahteva se DL"}]
[null,null,null,"(Q*Max*R)/N",null,"£","Emax"]
[null,null,null,{"$f":"IF('Vnos podatkov'!$G$15=\"\",\"zahteva se R\",IF($G$33=\"\",\"zahteva se Q \",IF('Vnos podatkov'!$G$16=\"\",\"zahteva se N\",($G$33*'Vnos podatkov'!$G$11*'Vnos podatkov'!$G$15)/'Vnos podatkov'!$G$16)))","v":"zahteva se R"},null,"£",{"$f":"IF('Vnos podatkov'!$G$37=\"\",\"\",'Vnos podatkov'!$G$37)","v":""},null,{"$f":"IF(OR($G$33=\"\",$G$35=\"\",$G$35>10000000),\"NE\",IF($D$35>$G$35,\"NE\",\"DA\"))","v":"NE"}]
[]
["(6a) Združljivost največjega števila preskusnih razdelkov merilnih celic (LC) s številom preskusnih razdelkov tehtnice "]
[]
[null,null,null,null,"nLC","³","n=Max/e"]
[null,null,"Enoobmočna tehtnica",null,{"$f":"IF('Vnos podatkov'!$G$40=\"\",\"\",'Vnos podatkov'!$G$40)","v":""},"³",{"$f":"IF('Vnos podatkov'!$H$11=\"\",\"\",IF('Vnos podatkov'!$H$11=\"\",\"\",'Vnos podatkov'!$G$11/'Vnos podatkov'!$H$11))","v":""},null,{"$f":"IF(OR($G$40=0,$G$40=\"\",$E$40=\"\",$E$40>100000000),\"NE\",IF($G$40>$E$40,\"NE\",\"DA\"))","v":"NE"}]
[null," Mehrteilungs- ",null,"i = 1",0,"³",0]
[null," oder Mehrbereichswaage",null,"i = 2",0,"³",0]
[null,null,null,"i = 3",0,"³",0]
[]
["(6b) Rückkehr des Vorlastsignals der WZ und kleinster Eichwert e1 einer Mehrteilungswaage"]
[]
[null,null,null,"nLC ali Z=Emax/(2*DR) ",null,"³","Maxr / e1"]
[null,null,null,0,null,"³",0]
[]
["(6c) Rückkehr des Vorlastsignals der WZ und kleinster Eichwert e1 einer Mehrbereichswaage"]
[]
[null,null,null,"nLC oder Z=Emax/(2*DR) ",null,"³","0,4*Maxr/e1"]
[null,null,null,0,null,"³",0]
[]
["(6d) Združljivost najmanjšega mrtvega bremena merilnih celic (LC) in dejanskega mrtvega bremena sprejemnika bremena"]
[]
[null,null,null,null,"DL*R/N","³","Emin"]
[null,null,null,null,{"$f":"IF('Vnos podatkov'!$G$16=\"\",\"\",IF('Vnos podatkov'!$G$16=0,\"\",'Vnos podatkov'!$G$19*'Vnos podatkov'!$G$15/'Vnos podatkov'!$G$16))","v":""},"³",{"$f":"IF('Vnos podatkov'!$G$38=\"\",\"\",'Vnos podatkov'!$G$38)","v":""},null,{"$f":"IF(OR($E$58=\"\",$G$58=\"\"),\"NE\",IF($G$58>$E$58,\"NE\",\"DA\"))","v":"NE"}]
[]
["(7) Najmanjši razdelek merilnih celic (LC) mora biti združljiv s preskusnim razdelkom tehtnice "]
[]
[null,null,null,null,"e*R/ ÖN","³","vmin= Emax/Y"]
[null,null,null,null,{"$f":"IF('Vnos podatkov'!$G$16=\"\",\"\",IF('Vnos podatkov'!$G$16=0,\"\",'Vnos podatkov'!$H$11*'Vnos podatkov'!$G$15/'Vnos podatkov'!$G$16^0.5))","v":""},"³",{"$f":"IF('Vnos podatkov'!$G$37=\"\",\"\",IF('Vnos podatkov'!$G$42<>0,'Vnos podatkov'!$G$37/'Vnos podatkov'!$G$42,IF('Vnos podatkov'!$G$41<>0,'Vnos podatkov'!$G$41,IF('Vnos podatkov'!$G$40=0,\"\",'Vnos podatkov'!$G$37/'Vnos podatkov'!$G$40))))","v":""},null,{"$f":"IF(OR($E$63=\"\",$G$63=\"\"),\"NE\",IF($G$63>$E$63,\"NE\",\"DA\"))","v":"NE"}]
[]
["(8) Dej. vhod. signal na preskusni razdelek tehtnice ne sme biti manjši od najmanj. vh. sig. na preskusni razdelek elektr. naprave"]
[]
[null,null,"najmanjši vhodni signal","U= C*Uexc*R*DL/(Emax *N)",null,"³","Umin"]
[null,null,"(neobremenjena tehtnica)",{"$f":"IF('Vnos podatkov'!$G$39=\"\",\"\",IF(OR('Vnos podatkov'!$G$37=0,'Vnos podatkov'!$G$16=0),\"\",'Vnos podatkov'!$G$39*'Vnos podatkov'!$G$27*'Vnos podatkov'!$G$15*'Vnos podatkov'!$G$19/('Vnos podatkov'!$G$37*'Vnos podatkov'!$G$16)))","v":""},null,"³",{"$f":"IF('Vnos podatkov'!$G$28=\"\",\"\",'Vnos podatkov'!$G$28)","v":""},null,{"$f":"IF(OR($D$68>1000000,$G$68=\"\",$D$68=\"\"),\"NE\",IF($G$68>$D$68,\"NE\",\"DA\"))","v":"NE"}]
[]
[null,null,"vhodni signal na preskusni razdelek","Du = C*Uexc*R*e/(Emax *N)",null,"³","Dumin"]
[null,null,null,{"$f":"IF('Vnos podatkov'!$G$39=\"\",\"\",IF(OR('Vnos podatkov'!$G$37=0,'Vnos podatkov'!$G$16=0),\"\",'Vnos podatkov'!$G$39*1000*'Vnos podatkov'!$G$27*'Vnos podatkov'!$G$15*'Vnos podatkov'!$H$11/('Vnos podatkov'!$G$37*'Vnos podatkov'!$G$16)))","v":""},null,"³",{"$f":"IF('Vnos podatkov'!$G$29=\"\",\"\",'Vnos podatkov'!$G$29)","v":""},null,{"$f":"IF(OR($D$71>1000000,$G$71=\"\",$D$71=\"\"),\"NE\",IF($G$71>$D$71,\"NE\",\"DA\"))","v":"NE"}]
[]
["(9) Dejanska upornost merilnih celic (LC) mora biti znotraj dopustnega območja upornosti za elektronsko napravo"]
[]
[null,null,"RLmin","£","RLC / N","£","RLmax"]
[null,null,{"$f":"IF('Vnos podatkov'!$G$30=\"\",\"zahteva se\",'Vnos podatkov'!$G$30)","v":"zahteva se"},"£",{"$f":"IF('Vnos podatkov'!G45=\"\",\"zaht. se R LC\",IF('Vnos podatkov'!$G$16=\"\",\"\",IF('Vnos podatkov'!$G$16=0,\"\",'Vnos podatkov'!$G$45/'Vnos podatkov'!$G$16)))","v":"zaht. se R LC"},"£",{"$f":"IF('Vnos podatkov'!$H$30>1000000,\"zahteva se\",IF('Vnos podatkov'!$H$30=\"\",\"zahteva se\",'Vnos podatkov'!$H$30))","v":"zahteva se"},null,{"$f":"IF($C$76=0,\"NE\",IF($G$76=\"se zahteva\",\"NE\",IF($E$76=\"\",\"NE\",IF($E$76<$C$76,\"NE\",IF($E$76>$G$76,\"NE\",\"DA\")))))","v":"NE"}]
[]
["(10) Dolžina kabla na površino preseka kabla ne sme preseči vrednosti navedene pri elektronski napravi  "]
[]
[null,null,null,null,"(L/A)","£","(L/A)max"]
[null,null,null,null,{"$f":"IF(OR('Vnos podatkov'!$G$23=\"\",'Vnos podatkov'!$G$23=0),0,'Vnos podatkov'!$G$22/'Vnos podatkov'!$G$23)","v":0},"£",{"$f":"IF('Vnos podatkov'!$G$34=\"\",\"\",'Vnos podatkov'!$G$34)","v":""},null,{"$f":"IF($G$81>1000000,\"NE\",IF($G$81=\"\",\"NE\",IF($G$81<$E$81,\"NE\",\"DA\")))","v":"NE"}]
[]
[null,null,null,null,null,null,null,null,"stran 2 of 6"]
["Izračun za  enoobmočno tehtnico "]

{"sheet":"Dvoobmočne tehtnice","index":2,"n_rows":84,"n_cols":9,"rows_kept":84,"cut":false,"hidden":true,"merged":[[34,3,34,4],[32,0,32,5],[69,3,69,4],[70,3,70,4],[52,3,52,4],[47,3,47,4],[66,3,66,4],[67,3,67,4]]}
["Urad RS za meroslovje"]
[]
[]
["b) Pregled skladnosti - Dvoobmočne tehtnice"]
[]
["(1) Razred točnosti tehtnice (WI) združljiv z razredom elektronske naprave (IND) in merilnih(e) celic(e) (LC)"]
[null,{"$f":"IF(B9=\"\",5,IF('Vnos podatkov'!G36=\"A\",1,IF('Vnos podatkov'!G36=\"B\",2,IF('Vnos podatkov'!G36=\"C\",3,IF('Vnos podatkov'!G36=\"D\",4,0)))))","v":5},null,{"$f":"IF(D9=\"\",5,IF('Vnos podatkov'!G25=\"I\",1,IF('Vnos podatkov'!G25=\"II\",2,IF('Vnos podatkov'!G25=\"III\",3,IF('Vnos podatkov'!G25=\"IIII\",4,0)))))","v":5},null,null,{"$f":"IF(G9=\"\",0,IF('Vnos podatkov'!G10=\"I\",1,IF('Vnos podatkov'!G10=\"II\",2,IF('Vnos podatkov'!G10=\"III\",3,IF('Vnos podatkov'!G10=\"IIII\",4,0)))))","v":0}]
[null,"LC","&","IND","enako ali bolje",null,"WI"]
[null,{"$f":"IF('Vnos podatkov'!$G$36=\"\",\"\",'Vnos podatkov'!$G$36)","v":""},"&",{"$f":"IF('Vnos podatkov'!$G$25=\"\",\"\",'Vnos podatkov'!$G$25)","v":""},"enako ali bolje",null,{"$f":"IF('Vnos podatkov'!$G$10=\"\",\"\",'Vnos podatkov'!$G$10)","v":""},null,{"$f":"IF($G$7=0,\"NE\",IF($B$7>$G$7,\"NE\",IF($D$7>$G$7,\"NE\",\"DA\")))","v":"NE"}]
[]
["(2) Temperaturno območje tehtnice (WI) v primerjavi s temp. območjem elektronske naprave (IND) in merilnih celic (LC) "]
[]
[null,null,"LC",null,"IND",null,"WI"]
[null,"Tmin",{"$f":"IF('Vnos podatkov'!G46=\"\",\"\",'Vnos podatkov'!G46)","v":""},"&",{"$f":"IF('Vnos podatkov'!G31=\"\",\"\",'Vnos podatkov'!G31)","v":""},"£",{"$f":"IF('Vnos podatkov'!G21=\"\",\"\",'Vnos podatkov'!G21)","v":""},null,{"$f":"IF(OR($G$14=\"\",$G$14>100),\"NE\",IF($C$14>$G$14,\"NE\",IF($E$14>$G$14,\"NE\",\"DA\")))","v":"NE"}]
[null,"Tmax",{"$f":"IF('Vnos podatkov'!H46=\"\",\"\",'Vnos podatkov'!H46)","v":""},"&",{"$f":"IF('Vnos podatkov'!H31=\"\",\"\",'Vnos podatkov'!H31)","v":""},"³",{"$f":"IF('Vnos podatkov'!H21=\"\",\"\",'Vnos podatkov'!H21)","v":""},null,{"$f":"IF(OR($C15>150,$E$15>100),\"NE\",IF($G$15=\"\",\"NE\",IF($C$15<$G$15,\"NE\",IF($E$15<$G$15,\"NE\",\"DA\"))))","v":"NE"}]
[]
["(3) Vsota kvadratov deležev pi najv. dop. pogreška merilnih celic (LC), povezovalnih elem. in elektr. naprave"]
[]
[null,"pcon2","+","pind2","+","pLC2","£ 1"]
[null,{"$f":"IF('Vnos podatkov'!$G$49=\"\",\"\",'Vnos podatkov'!$G$49^2)","v":""},"+",{"$f":"IF('Vnos podatkov'!$G$32=\"\",\"\",'Vnos podatkov'!$G$32^2)","v":""},"+",{"$f":"IF('Vnos podatkov'!$G$47=\"\",\"\",'Vnos podatkov'!$G$47^2)","v":""},"£ 1",null,{"$f":"IF(OR($F$20=\"\",$F$20>(0.8)^2,$F$20<(0.3)^2,$D$20=\"\",$D$20>(0.8)^2,$D$20<(0.3)^2,$B$20=\"\"),\"NE\",IF($B$20+$D$20+$F$20>1,\"NE\",\"DA\"))","v":"NE"}]
[]
["(4) Število preskusnih razdelkov tehtnice ne sme preseči največjega števila preskusnih razdelkov elekronske naprave"]
[]
[null,null,null,null,"nind","³","n(i) = Max(i) /e(i)"]
[null," Einbereichswaage",null,null,{"$f":"'Vnos podatkov'!G26","v":0},"³",{"$f":"IF('Vnos podatkov'!H11=0,0,'Vnos podatkov'!G11/'Vnos podatkov'!H11)","v":0}]
[null,"Dvoobmočna tehtnica",null,"i = 1",{"$f":"IF('Vnos podatkov'!$G$26=\"\",\"\",'Vnos podatkov'!$G$26)","v":""},"³",{"$f":"IF('Vnos podatkov'!$H$12=\"\",\"\",IF('Vnos podatkov'!$H$12=0,\"\",'Vnos podatkov'!$G$12/'Vnos podatkov'!$H$12))","v":""},null,{"$f":"IF(OR($E$26=\"\",$E$26>100000000,$G$26=\"\"),\"NE\",IF($G$26>$E$26,\"NE\",\"DA\"))","v":"NE"}]
[null,null,null,"i = 2",{"$f":"IF('Vnos podatkov'!$G$26=\"\",\"\",'Vnos podatkov'!$G$26)","v":""},"³",{"$f":"IF('Vnos podatkov'!$H$13=\"\",\"\",IF('Vnos podatkov'!$H$13=0,\"\",'Vnos podatkov'!$G$13/'Vnos podatkov'!$H$13))","v":""},null,{"$f":"IF(OR($E$27=\"\",$E$27>100000000,$G$27=\"\"),\"NE\",IF($G$27>$E$27,\"NE\",\"DA\"))","v":"NE"}]
[null,null,null,"i = 3",0,"³",0]
[]
[]
["(5) Največja zmogljivost merilnih celic (LC) mora biti združljiva z Max tehtnice "]
[]
["Faktor Q (EN 45 501 No 4.12.1) :   Q = (Max2+DL+IZSR+NUD+T+)/Max2 =",null,null,null,null,null,{"$f":"IF('Vnos podatkov'!$G$19=\"\",\"se zahteva DL\",IF('Vnos podatkov'!$G$18=\"\",\"zahteva se NUD\",IF('Vnos podatkov'!$G$17=\"\",\"zaht. se IZRS\",IF('Vnos podatkov'!$G$13=\"\",\"\",IF('Vnos podatkov'!$G$13=0,\"\",('Vnos podatkov'!$G$13+'Vnos podatkov'!$G$17+'Vnos podatkov'!$G$18+'Vnos podatkov'!$G$19+'Vnos podatkov'!$G$20)/'Vnos podatkov'!$G$13)))))","v":"se zahteva DL"}]
[null,null,null,"(Q*Max2*R)/N",null,"£","Emax"]
[null,null,null,{"$f":"IF('Vnos podatkov'!$G$15=\"\",\"se zahteva R\",IF($G$33=\"\",\"se zaheva Q\",IF('Vnos podatkov'!$G$16=\"\",\"se zahteva N\",($G$33*'Vnos podatkov'!$G$13*'Vnos podatkov'!$G$15)/'Vnos podatkov'!$G$16)))","v":"se zahteva R"},null,"£",{"$f":"IF('Vnos podatkov'!$G$37=\"\",\"\",'Vnos podatkov'!$G$37)","v":""},null,{"$f":"IF(OR($G$33=\"\",$G$35=\"\",$G$35>10000000),\"NE\",IF($D$35>$G$35,\"NE\",\"DA\"))","v":"NE"}]
[]
["(6a) Združljivost največjega števila preskusnih razdelkov merilnih celic (LC) s številom preskusnih razdelkov tehtnice "]
[]
[null,null,null,null,"nLC","³","n(i) = Max(i) /e(i)"]
[null," Einbereichswaage",null,null,{"$f":"'Vnos podatkov'!G40","v":0},"³",{"$f":"IF('Vnos podatkov'!H11=0,0,'Vnos podatkov'!G11/'Vnos podatkov'!H11)","v":0}]
[null,"Dvoobmočna tehtnica",null,"i = 1",{"$f":"IF('Vnos podatkov'!$G$40=\"\",\"\",'Vnos podatkov'!$G$40)","v":""},"³",{"$f":"IF('Vnos podatkov'!$H$12=\"\",\"\",IF('Vnos podatkov'!$H$12=0,\"\",'Vnos podatkov'!$G$12/'Vnos podatkov'!$H$12))","v":""},null,{"$f":"IF(OR($G$41=0,$G$41=\"\",$E$41=\"\",$E$41>100000000),\"NE\",IF($G$41>$E$41,\"NE\",\"DA\"))","v":"NE"}]
[null,null,null,"i = 2",{"$f":"IF('Vnos podatkov'!$G$40=\"\",\"\",'Vnos podatkov'!$G$40)","v":""},"³",{"$f":"IF('Vnos podatkov'!$H$13=\"\",\"\",IF('Vnos podatkov'!$H$13=0,\"\",'Vnos podatkov'!$G$13/'Vnos podatkov'!$H$13))","v":""},null,{"$f":"IF(OR($G$42=0,$G$42=\"\",$E$42=\"\",$E$42>100000000),\"NE\",IF($G$42>$E$42,\"NE\",\"DA\"))","v":"NE"}]
[null,null,null,"i = 3",0,"³",0]
[]
["(6b) Rückkehr des Vorlastsignals der WZ und kleinster Eichwert e1 einer Mehrteilungswaage"]
[]
[null,null,null,"nLC ali Z=Emax/(2*DR) ",null,"³","Maxr / e1"]
[null,null,null,0,null,"³",{"$f":"IF('Vnos podatkov'!H21=0,0,'Vnos podatkov'!G21/'Vnos podatkov'!H21)","v":0}]
[]
["(6c) Združljivost najm. izhod. signala merilne celice pri mrvem bremen s preskunim razdelkom tehtnice z več območji tehtanja "]
[]
[null,null,null,"nLC ali Z= Emax / (2*DR) ",null,"³","0,4*Max2 /e1"]
[null,null,null,{"$f":"IF('Vnos podatkov'!$G$43<>0,'Vnos podatkov'!$G$43,(IF('Vnos podatkov'!$G$44<>0,'Vnos podatkov'!$G$37/(2*'Vnos podatkov'!$G$44),'Vnos podatkov'!$G$40)))","v":0},null,"³",{"$f":"IF('Vnos podatkov'!$H$12=\"\",\"\",IF('Vnos podatkov'!$H$12=0,\"\",'Vnos podatkov'!$G$13/'Vnos podatkov'!$H$12*0.4))","v":""},null,{"$f":"IF($D$53>10000000,\"NE\",IF($G$53=\"\",\"NE\",IF($G$53>$D$53,\"NE\",\"DA\")))","v":"NE"}]
[]
["(6d) Združljivost najmanjšega mrtvega bremena merilnih celic (LC) in dejanskega mrtvega bremena sprejemnika bremena"]
[]
[null,null,null,null,"DL*R/N","³","Emin"]
[null,null,null,null,{"$f":"IF('Vnos podatkov'!$G$16=\"\",\"\",IF('Vnos podatkov'!$G$16=0,\"\",'Vnos podatkov'!$G$19*'Vnos podatkov'!$G$15/'Vnos podatkov'!$G$16))","v":""},"³",{"$f":"IF('Vnos podatkov'!$G$38=\"\",\"\",'Vnos podatkov'!$G$38)","v":""},null,{"$f":"IF(OR($E$58=\"\",$G$58=\"\"),\"NE\",IF($G$58>$E$58,\"NE\",\"DA\"))","v":"NE"}]
[]
["(7) Najmanjši razdelek merilnih celic (LC) mora biti združljiv s preskusnim razdelkom tehtnice "]
[]
[null,null,null,null,"e1*R/ÖN","³","vmin= Emax /Y"]
[null,null,null,null,{"$f":"IF('Vnos podatkov'!$G$16=\"\",\"\",IF('Vnos podatkov'!$G$16=0,\"\",'Vnos podatkov'!$H$12*'Vnos podatkov'!$G$15/'Vnos podatkov'!$G$16^0.5))","v":""},"³",{"$f":"IF('Vnos podatkov'!$G$37=\"\",\"\",IF('Vnos podatkov'!$G$42<>0,'Vnos podatkov'!$G$37/'Vnos podatkov'!$G$42,IF('Vnos podatkov'!$G$41<>0,'Vnos podatkov'!$G$41,IF('Vnos podatkov'!$G$40=0,\"\",'Vnos podatkov'!$G$37/'Vnos podatkov'!$G$40))))","v":""},null,{"$f":"IF(OR($E$63=\"\",$G$63=\"\"),\"NE\",IF($G$63>$E$63,\"NE\",\"DA\"))","v":"NE"}]
[]
["(8) Dej. vhod. signal na preskusni razdelek tehtnice ne sme biti manjši od najmanj. vh. sig. na preskusni razdelek elektr. naprave"]
[]
[null,null,"najmanjši vhodni signal","U= C*Uexc*R*DL/(Emax *N)",null,"³","Umin"]
[null,null,"(neobremenjena tehtnica)",{"$f":"IF('Vnos podatkov'!$G$39=\"\",\"\",IF(OR('Vnos podatkov'!$G$37=0,'Vnos podatkov'!$G$16=0),\"\",'Vnos podatkov'!$G$39*'Vnos podatkov'!$G$27*'Vnos podatkov'!$G$15*'Vnos podatkov'!$G$19/('Vnos podatkov'!$G$37*'Vnos podatkov'!$G$16)))","v":""},null,"³",{"$f":"IF('Vnos podatkov'!$G$28=\"\",\"\",'Vnos podatkov'!$G$28)","v":""},null,{"$f":"IF(OR($D$68>1000000,$G$68=\"\",$D$68=\"\"),\"NE\",IF($G$68>$D$68,\"NE\",\"DA\"))","v":"NE"}]
[]
[null,null,"vhodni signal na preskusni razdelek","Du = C*Uexc*R*e/(Emax *N)",null,"³","Dumin"]
[null,null,null,{"$f":"IF('Vnos podatkov'!$G$39=\"\",\"\",IF(OR('Vnos podatkov'!$G$37=0,'Vnos podatkov'!$G$16=0),\"\",'Vnos podatkov'!$G$39*1000*'Vnos podatkov'!$G$27*'Vnos podatkov'!$G$15*'Vnos podatkov'!$H$12/('Vnos podatkov'!$G$37*'Vnos podatkov'!$G$16)))","v":""},null,"³",{"$f":"'Vnos podatkov'!$G$29","v":0},null,{"$f":"IF(OR($D$71>1000000,$G$71=\"\",$D$71=\"\"),\"NE\",IF($G$71>$D$71,\"NE\",\"DA\"))","v":"NE"}]
[]
["(9) Dejanska upornost merilnih celic (LC) mora biti znotraj dopustnega območja upornosti za elektronsko napravo"]
[]
[null,null,"RLmin","£","RLC / N","£","RLmax"]
[null,null,{"$f":"IF('Vnos podatkov'!$G$30=\"\",\"se zahteva \",'Vnos podatkov'!$G$30)","v":"se zahteva "},"£",{"$f":"IF('Vnos podatkov'!G45=\"\",\"se zaht. R LC\",IF('Vnos podatkov'!$G$16=\"\",\"\",IF('Vnos podatkov'!$G$16=0,\"\",'Vnos podatkov'!$G$45/'Vnos podatkov'!$G$16)))","v":"se zaht. R LC"},"£",{"$f":"IF('Vnos podatkov'!$H$30>1000000,\"se zahteva \",IF('Vnos podatkov'!$H$30=\"\",\"se zahteva \",'Vnos podatkov'!$H$30))","v":"se zahteva "},null,{"$f":"IF($C$76=0,\"NE\",IF($G$76=\"se zahteva\",\"NE\",IF($E$76=\"\",\"NE\",IF($E$76<$C$76,\"NE\",IF($E$76>$G$76,\"NE\",\"DA\")))))","v":"NE"}]
[]
["(10) Dolžina kabla na površino preseka kabla ne sme preseči vrednosti navedene pri elektronski napravi  "]
[]
[null,null,null,null,"(L/A)","£","(L/A)max"]
[null,null,null,null,{"$f":"IF(OR('Vnos podatkov'!$G$23=\"\",'Vnos podatkov'!$G$23=0),0,'Vnos podatkov'!$G$22/'Vnos podatkov'!$G$23)","v":0},"£",{"$f":"IF('Vnos podatkov'!$G$34=\"\",\"\",'Vnos podatkov'!$G$34)","v":""},null,{"$f":"IF($G$81>1000000,\"NE\",IF($G$81=\"\",\"NE\",IF($G$81<$E$81,\"NE\",\"DA\")))","v":"NE"}]
[]
[null,null,null,null,"2004-05-01",null,null,null,"stran 3 od 6"]
["Izračun za dvoobmočno tehtnico "]

{"sheet":"Troobmočne tehtnice","index":3,"n_rows":84,"n_cols":9,"rows_kept":84,"cut":false,"hidden":true,"merged":[[69,3,69,4],[70,3,70,4],[32,0,32,5],[34,3,34,4],[47,3,47,4],[52,3,52,4],[66,3,66,4],[67,3,67,4]]}
["Urad RS za meroslovje"]
[]
[]
["b) Pregled skladnosti - Troobmočne tehtnice"]
[]
["(1) Razred točnosti tehtnice (WI) združljiv z razredom elektronske naprave (IND) in merilnih(e) celic(e) (LC)"]
[null,{"$f":"IF(B9=\"\",5,IF('Vnos podatkov'!G36=\"A\",1,IF('Vnos podatkov'!G36=\"B\",2,IF('Vnos podatkov'!G36=\"C\",3,IF('Vnos podatkov'!G36=\"D\",4,0)))))","v":5},null,{"$f":"IF(D9=\"\",5,IF('Vnos podatkov'!G25=\"I\",1,IF('Vnos podatkov'!G25=\"II\",2,IF('Vnos podatkov'!G25=\"III\",3,IF('Vnos podatkov'!G25=\"IIII\",4,0)))))","v":5},null,null,{"$f":"IF(G9=\"\",0,IF('Vnos podatkov'!G10=\"I\",1,IF('Vnos podatkov'!G10=\"II\",2,IF('Vnos podatkov'!G10=\"III\",3,IF('Vnos podatkov'!G10=\"IIII\",4,0)))))","v":0}]
[null,"LC","&","IND","enako ali bolje",null,"WI"]
[null,{"$f":"IF('Vnos podatkov'!$G$36=\"\",\"\",'Vnos podatkov'!$G$36)","v":""},"&",{"$f":"IF('Vnos podatkov'!$G$25=\"\",\"\",'Vnos podatkov'!$G$25)","v":""},"enako ali bolje",null,{"$f":"IF('Vnos podatkov'!$G$10=\"\",\"\",'Vnos podatkov'!$G$10)","v":""},null,{"$f":"IF($G$7=0,\"NE\",IF($B$7>$G$7,\"NE\",IF($D$7>$G$7,\"NE\",\"DA\")))","v":"NE"}]
[]
["(2) Temperaturno območje tehtnice (WI) v primerjavi s temp. območjem elektronske naprave (IND) in merilnih celic (LC) "]
[]
[null,null,"LC",null,"IND",null,"WI"]
[null,"Tmin",{"$f":"IF('Vnos podatkov'!G46=\"\",\"\",'Vnos podatkov'!G46)","v":""},"&",{"$f":"IF('Vnos podatkov'!G31=\"\",\"\",'Vnos podatkov'!G31)","v":""},"£",{"$f":"IF('Vnos podatkov'!G21=\"\",\"\",'Vnos podatkov'!G21)","v":""},null,{"$f":"IF(OR($G$14=\"\",$G$14>100),\"NE\",IF($C$14>$G$14,\"NE\",IF($E$14>$G$14,\"NE\",\"DA\")))","v":"NE"}]
[null,"Tmax",{"$f":"IF('Vnos podatkov'!H46=\"\",\"\",'Vnos podatkov'!H46)","v":""},"&",{"$f":"IF('Vnos podatkov'!H31=\"\",\"\",'Vnos podatkov'!H31)","v":""},"³",{"$f":"IF('Vnos podatkov'!H21=\"\",\"\",'Vnos podatkov'!H21)","v":""},null,{"$f":"IF(OR($C15>150,$E$15>100),\"NE\",IF($G$15=\"\",\"NE\",IF($C$15<$G$15,\"NE\",IF($E$15<$G$15,\"NE\",\"DA\"))))","v":"NE"}]
[]
["(3) Vsota kvadratov deležev pi najv. dop. pogreška merilnih celic (LC), povezovalnih elem. in elektr. naprave"]
[]
[null,"pcon2","+","pind2","+","pLC2","£ 1"]
[null,{"$f":"IF('Vnos podatkov'!$G$49=\"\",\"\",'Vnos podatkov'!$G$49^2)","v":""},"+",{"$f":"IF('Vnos podatkov'!$G$32=\"\",\"\",'Vnos podatkov'!$G$32^2)","v":""},"+",{"$f":"IF('Vnos podatkov'!$G$47=\"\",\"\",'Vnos podatkov'!$G$47^2)","v":""},"£ 1",null,{"$f":"IF(OR($F$20=\"\",$F$20>(0.8)^2,$F$20<(0.3)^2,$D$20=\"\",$D$20>(0.8)^2,$D$20<(0.3)^2,$B$20=\"\"),\"NE\",IF($B$20+$D$20+$F$20>1,\"NE\",\"DA\"))","v":"NE"}]
[]
["(4) Število preskusnih razdelkov tehtnice ne sme preseči največjega števila preskusnih razdelkov elekronske naprave"]
[]
[null,null,null,null,"nind","³","n(i) = Max(i) /e(i)"]
[null," Mehrbereichswaage",null,null,{"$f":"'Vnos podatkov'!G26","v":0},"³",{"$f":"IF('Vnos podatkov'!H11=0,0,'Vnos podatkov'!G11/'Vnos podatkov'!H11)","v":0}]
[null,"Troobmočna ehtnica",null,"i = 1",{"$f":"IF('Vnos podatkov'!$G$26=\"\",\"\",'Vnos podatkov'!$G$26)","v":""},"³",{"$f":"IF('Vnos podatkov'!$H$12=\"\",\"\",IF('Vnos podatkov'!$H$12=0,\"\",'Vnos podatkov'!$G$12/'Vnos podatkov'!$H$12))","v":""},null,{"$f":"IF(OR($E$26=\"\",$E$26>100000000,$G$26=\"\"),\"NE\",IF($G$26>$E$26,\"NE\",\"DA\"))","v":"NE"}]
[null,null,null,"i = 2",{"$f":"IF('Vnos podatkov'!$G$26=\"\",\"\",'Vnos podatkov'!$G$26)","v":""},"³",{"$f":"IF('Vnos podatkov'!$H$13=\"\",\"\",IF('Vnos podatkov'!$H$13=0,\"\",'Vnos podatkov'!$G$13/'Vnos podatkov'!$H$13))","v":""},null,{"$f":"IF(OR($E$27=\"\",$E$27>100000000,$G$27=\"\"),\"NE\",IF($G$27>$E$27,\"NE\",\"DA\"))","v":"NE"}]
[null,null,null,"i = 3",{"$f":"IF('Vnos podatkov'!$G$26=\"\",\"\",'Vnos podatkov'!$G$26)","v":""},"³",{"$f":"IF('Vnos podatkov'!$H$14=\"\",\"\",IF('Vnos podatkov'!$H$14=0,\"\",'Vnos podatkov'!$G$14/'Vnos podatkov'!$H$14))","v":""},null,{"$f":"IF(OR($E$28=\"\",$E$28>100000000,$G$28=\"\"),\"NE\",IF($G$28>$E$28,\"NE\",\"DA\"))","v":"NE"}]
[]
[]
["(5) Največja zmogljivost merilnih celic (LC) mora biti združljiva z Max tehtnice "]
[]
["Faktor Q (EN 45 501 No 4.12.1) :   Q = (Max3+DL+IZSR+NUD+T+)/Max3 =",null,null,null,null,null,{"$f":"IF('Vnos podatkov'!$G$19=\"\",\" se zahteva DL\",IF('Vnos podatkov'!$G$18=\"\",\"NUD wanted\",IF('Vnos podatkov'!$G$17=\"\",\"IZRS wanted\",IF('Vnos podatkov'!$G$13=\"\",\"\",IF('Vnos podatkov'!$G$13=0,\"\",('Vnos podatkov'!$G$14+'Vnos podatkov'!$G$17+'Vnos podatkov'!$G$18+'Vnos podatkov'!$G$19+'Vnos podatkov'!$G$20)/'Vnos podatkov'!$G$14)))))","v":" se zahteva DL"}]
[null,null,null,"(Q*Max3*R)/N",null,"£","Emax"]
[null,null,null,{"$f":"IF('Vnos podatkov'!$G$15=\"\",\"se zahteva R\",IF($G$33=\"\",\"se zahteva Q\",IF('Vnos podatkov'!$G$16=\"\",\"se zahteva N\",($G$33*'Vnos podatkov'!$G$14*'Vnos podatkov'!$G$15)/'Vnos podatkov'!$G$16)))","v":"se zahteva R"},null,"£",{"$f":"IF('Vnos podatkov'!$G$37=\"\",\"\",'Vnos podatkov'!$G$37)","v":""},null,{"$f":"IF(OR($G$33=\"\",$G$35=\"\",$G$35>10000000),\"NE\",IF($D$35>$G$35,\"NE\",\"DA\"))","v":"NE"}]
[]
["(6a) Združljivost največjega števila preskusnih razdelkov merilnih celic (LC) s številom preskusnih razdelkov tehtnice "]
[]
[null,null,null,null,"nLC","³","n(i) = Max(i) /e(i)"]
[null," Einbereichswaage",null,null,{"$f":"'Vnos podatkov'!G40","v":0},"³",{"$f":"IF('Vnos podatkov'!H11=0,0,'Vnos podatkov'!G11/'Vnos podatkov'!H11)","v":0}]
[null,"Troobmočna tehtnica",null,"i = 1",{"$f":"IF('Vnos podatkov'!$G$40=\"\",\"\",'Vnos podatkov'!$G$40)","v":""},"³",{"$f":"IF('Vnos podatkov'!$H$12=\"\",\"\",IF('Vnos podatkov'!$H$12=0,\"\",'Vnos podatkov'!$G$12/'Vnos podatkov'!$H$12))","v":""},null,{"$f":"IF(OR($G$41=0,$G$41=\"\",$E$41=\"\",$E$41>100000000),\"NE\",IF($G$41>$E$41,\"NE\",\"DA\"))","v":"NE"}]
[null,null,null,"i = 2",{"$f":"IF('Vnos podatkov'!$G$40=\"\",\"\",'Vnos podatkov'!$G$40)","v":""},"³",{"$f":"IF('Vnos podatkov'!$H$13=\"\",\"\",IF('Vnos podatkov'!$H$13=0,\"\",'Vnos podatkov'!$G$13/'Vnos podatkov'!$H$13))","v":""},null,{"$f":"IF(OR($G$42=0,$G$42=\"\",$E$42=\"\",$E$42>100000000),\"NE\",IF($G$42>$E$42,\"NE\",\"DA\"))","v":"NE"}]
[null,null,null,"i = 3",{"$f":"IF('Vnos podatkov'!$G$40=\"\",\"\",'Vnos podatkov'!$G$40)","v":""},"³",{"$f":"IF('Vnos podatkov'!$H$14=\"\",\"\",IF('Vnos podatkov'!$H$14=0,\"\",'Vnos podatkov'!$G$14/'Vnos podatkov'!$H$14))","v":""},null,{"$f":"IF(OR($G$43=0,$G$43=\"\",$E$43=\"\",$E$43>100000000),\"NE\",IF($G$43>$E$43,\"NE\",\"DA\"))","v":"NE"}]
[]
["(6b) Rückkehr des Vorlastsignals der WZ und kleinster Eichwert e1 einer Mehrteilungswaage"]
[]
[null,null,null,"nLC ali Z=Emax/(2*DR) ",null,"³","Maxr / e1"]
[null,null,null,0,null,"³",{"$f":"IF('Vnos podatkov'!H21=0,0,'Vnos podatkov'!G21/'Vnos podatkov'!H21)","v":0}]
[]
["(6c) Nanjmanši izhodni signal merilnih(e) celic(e) (LC) pri mrtvem bremenu s preskusnim razdelkom tehtnice z več območji tehtanja"]
[]
[null,null,null,"nLC ali Z=Emax/(2*DR) ",null,"³","0,4*Max3 /e1"]
[null,null,null,{"$f":"IF('Vnos podatkov'!$G$43<>0,'Vnos podatkov'!$G$43,(IF('Vnos podatkov'!$G$44<>0,'Vnos podatkov'!$G$37/(2*'Vnos podatkov'!$G$44),'Vnos podatkov'!$G$40)))","v":0},null,"³",{"$f":"IF('Vnos podatkov'!$H$12=\"\",\"\",IF('Vnos podatkov'!$H$12=0,\"\",'Vnos podatkov'!$G$14/'Vnos podatkov'!$H$12*0.4))","v":""},null,{"$f":"IF($D$53>10000000,\"NE\",IF($G$53=\"\",\"NE\",IF($G$53>$D$53,\"NE\",\"DA\")))","v":"NE"}]
[]
["(6d) Združljivost najmanjšega mrtvega bremena merilnih celic (LC) in dejanskega mrtvega bremena sprejemnika bremena"]
[]
[null,null,null,null,"DL*R/N","³","Emin"]
[null,null,null,null,{"$f":"IF('Vnos podatkov'!$G$16=\"\",\"\",IF('Vnos podatkov'!$G$16=0,\"\",'Vnos podatkov'!$G$19*'Vnos podatkov'!$G$15/'Vnos podatkov'!$G$16))","v":""},"³",{"$f":"IF('Vnos podatkov'!$G$38=\"\",\"\",'Vnos podatkov'!$G$38)","v":""},null,{"$f":"IF(OR($E$58=\"\",$G$58=\"\"),\"NE\",IF($G$58>$E$58,\"NE\",\"DA\"))","v":"NE"}]
[]
["(7) Najmanjši razdelek merilnih celic (LC) mora biti združljiv s preskusnim razdelkom tehtnice "]
[]
[null,null,null,null,"e1*R/ÖN","³","vmin= Emax/Y"]
[null,null,null,null,{"$f":"IF('Vnos podatkov'!$G$16=\"\",\"\",IF('Vnos podatkov'!$G$16=0,\"\",'Vnos podatkov'!$H$12*'Vnos podatkov'!$G$15/'Vnos podatkov'!$G$16^0.5))","v":""},"³",{"$f":"IF('Vnos podatkov'!$G$37=\"\",\"\",IF('Vnos podatkov'!$G$42<>0,'Vnos podatkov'!$G$37/'Vnos podatkov'!$G$42,IF('Vnos podatkov'!$G$41<>0,'Vnos podatkov'!$G$41,IF('Vnos podatkov'!$G$40=0,\"\",'Vnos podatkov'!$G$37/'Vnos podatkov'!$G$40))))","v":""},null,{"$f":"IF(OR($E$63=\"\",$G$63=\"\"),\"NE\",IF($G$63>$E$63,\"NE\",\"DA\"))","v":"NE"}]
[]
["(8) Dej. vhod. signal na preskusni razdelek tehtnice ne sme biti manjši od najmanj. vh. sig. na preskusni razdelek elektr. naprave"]
[]
[null,null,"najmanjši vhodni signal","U= C*Uexc*R*DL/(Emax *N)",null,"³","Umin"]
[null,null,"(neobremenjena tehtnica)",{"$f":"IF('Vnos podatkov'!$G$39=\"\",\"\",IF(OR('Vnos podatkov'!$G$37=0,'Vnos podatkov'!$G$16=0),\"\",'Vnos podatkov'!$G$39*'Vnos podatkov'!$G$27*'Vnos podatkov'!$G$15*'Vnos podatkov'!$G$19/('Vnos podatkov'!$G$37*'Vnos podatkov'!$G$16)))","v":""},null,"³",{"$f":"IF('Vnos podatkov'!$G$28=\"\",\"\",'Vnos podatkov'!$G$28)","v":""},null,{"$f":"IF(OR($D$68>1000000,$G$68=\"\",$D$68=\"\"),\"NE\",IF($G$68>$D$68,\"NE\",\"DA\"))","v":"NE"}]
[]
[null,null,"vhodni signal na preskusni razdelek","Du = C*Uexc*R*e/(Emax *N)",null,"³","Dumin"]
[null,null,null,{"$f":"IF('Vnos podatkov'!$G$39=\"\",\"\",IF(OR('Vnos podatkov'!$G$37=0,'Vnos podatkov'!$G$16=0),\"\",'Vnos podatkov'!$G$39*1000*'Vnos podatkov'!$G$27*'Vnos podatkov'!$G$15*'Vnos podatkov'!$H$12/('Vnos podatkov'!$G$37*'Vnos podatkov'!$G$16)))","v":""},null,"³",{"$f":"'Vnos podatkov'!$G$29","v":0},null,{"$f":"IF(OR($D$71>1000000,$G$71=\"\",$D$71=\"\"),\"NE\",IF($G$71>$D$71,\"NE\",\"DA\"))","v":"NE"}]
[]
["(9) Dejanska upornost merilnih celic (LC) mora biti znotraj dopustnega območja upornosti za elektronsko napravo"]
[]
[null,null,"RLmin","£","RLC / N","£","RLmax"]
[null,null,{"$f":"IF('Vnos podatkov'!$G$30=\"\",\"se zahteva\",'Vnos podatkov'!$G$30)","v":"se zahteva"},"£",{"$f":"IF('Vnos podatkov'!G45=\"\",\"se zaht. R LC\",IF('Vnos podatkov'!$G$16=\"\",\"\",IF('Vnos podatkov'!$G$16=0,\"\",'Vnos podatkov'!$G$45/'Vnos podatkov'!$G$16)))","v":"se zaht. R LC"},"£",{"$f":"IF('Vnos podatkov'!$H$30>1000000,\"se zahteva\",IF('Vnos podatkov'!$H$30=\"\",\"se zahteva\",'Vnos podatkov'!$H$30))","v":"se zahteva"},null,{"$f":"IF($C$76=0,\"NE\",IF($G$76=\"se zahteva\",\"NE\",IF($E$76=\"\",\"NE\",IF($E$76<$C$76,\"NE\",IF($E$76>$G$76,\"NE\",\"DA\")))))","v":"NE"}]
[]
["(10) Dolžina kabla na površino preseka kabla ne sme preseči vrednosti navedene pri elektronski napravi  "]
[]
[null,null,null,null,"(L/A)","£","(L/A)max"]
[null,null,null,null,{"$f":"IF(OR('Vnos podatkov'!$G$23=\"\",'Vnos podatkov'!$G$23=0),0,'Vnos podatkov'!$G$22/'Vnos podatkov'!$G$23)","v":0},"£",{"$f":"IF('Vnos podatkov'!$G$34=\"\",\"\",'Vnos podatkov'!$G$34)","v":""},null,{"$f":"IF($G$81>1000000,\"NE\",IF($G$81=\"\",\"NE\",IF($G$81<$E$81,\"NE\",\"DA\")))","v":"NE"}]
[]
[null,null,null,null,"2004-05-01",null,null,null,"stran 4 od 6"]
["Izračun za troobmočno tehtnico "]

{"sheet":"Dvorazdelčne tehtnice","index":4,"n_rows":84,"n_cols":9,"rows_kept":84,"cut":false,"hidden":true,"merged":[[34,3,34,4],[32,0,32,5],[69,3,69,4],[70,3,70,4],[47,3,47,4],[52,3,52,4],[66,3,66,4],[67,3,67,4]]}
["Urad RS za meroslovje"]
[]
[]
["b) Pregled skladnosti - Dvorazdečne tehtnice"]
[]
["(1) Razred točnosti tehtnice (WI) združljiv z razredom elektronske naprave (IND) in merilnih(e) celic(e) (LC)"]
[null,{"$f":"IF(B9=\"\",5,IF('Vnos podatkov'!G36=\"A\",1,IF('Vnos podatkov'!G36=\"B\",2,IF('Vnos podatkov'!G36=\"C\",3,IF('Vnos podatkov'!G36=\"D\",4,0)))))","v":5},null,{"$f":"IF(D9=\"\",5,IF('Vnos podatkov'!G25=\"I\",1,IF('Vnos podatkov'!G25=\"II\",2,IF('Vnos podatkov'!G25=\"III\",3,IF('Vnos podatkov'!G25=\"IIII\",4,0)))))","v":5},null,null,{"$f":"IF(G9=\"\",0,IF('Vnos podatkov'!G10=\"I\",1,IF('Vnos podatkov'!G10=\"II\",2,IF('Vnos podatkov'!G10=\"III\",3,IF('Vnos podatkov'!G10=\"IIII\",4,0)))))","v":0}]
[null,"LC","&","IND","enako ali bolje",null,"WI"]
[null,{"$f":"IF('Vnos podatkov'!$G$36=\"\",\"\",'Vnos podatkov'!$G$36)","v":""},"&",{"$f":"IF('Vnos podatkov'!$G$25=\"\",\"\",'Vnos podatkov'!$G$25)","v":""},"enako ali bolje",null,{"$f":"IF('Vnos podatkov'!$G$10=\"\",\"\",'Vnos podatkov'!$G$10)","v":""},null,{"$f":"IF($G$7=0,\"NE\",IF($B$7>$G$7,\"NE\",IF($D$7>$G$7,\"NE\",\"DA\")))","v":"NE"}]
[]
["(2) Temperaturno območje tehtnice (WI) v primerjavi s temp. območjem elektronske naprave (IND) in merilnih celic (LC) "]
[]
[null,null,"LC",null,"IND",null,"WI"]
[null,"Tmin",{"$f":"IF('Vnos podatkov'!$G$46=\"\",\"\",'Vnos podatkov'!$G$46)","v":""},"&",{"$f":"IF('Vnos podatkov'!$G$31=\"\",\"\",'Vnos podatkov'!$G$31)","v":""},"£",{"$f":"IF('Vnos podatkov'!$G$21=\"\",\"\",'Vnos podatkov'!$G$21)","v":""},null,{"$f":"IF(OR($G$14=\"\",$G$14>100),\"NE\",IF($C$14>$G$14,\"NE\",IF($E$14>$G$14,\"NE\",\"DA\")))","v":"NE"}]
[null,"Tmax",{"$f":"IF('Vnos podatkov'!$H$46=\"\",\"\",'Vnos podatkov'!$H$46)","v":""},"&",{"$f":"IF('Vnos podatkov'!$H$31=\"\",\"\",'Vnos podatkov'!$H$31)","v":""},"³",{"$f":"IF('Vnos podatkov'!$H$21=\"\",\"\",'Vnos podatkov'!$H$21)","v":""},null,{"$f":"IF(OR($C15>150,$E$15>100),\"NE\",IF($G$15=\"\",\"NE\",IF($C$15<$G$15,\"NE\",IF($E$15<$G$15,\"NE\",\"DA\"))))","v":"NE"}]
[]
["(3) Vsota kvadratov deležev pi najv. dop. pogreška merilnih celic (LC), povezovalnih elem. in elektr. naprave"]
[]
[null,"pcon2","+","pind2","+","pLC2","£ 1"]
[null,{"$f":"IF('Vnos podatkov'!$G$49=\"\",\"\",'Vnos podatkov'!$G$49^2)","v":""},"+",{"$f":"IF('Vnos podatkov'!$G$32=\"\",\"\",'Vnos podatkov'!$G$32^2)","v":""},"+",{"$f":"IF('Vnos podatkov'!$G$47=\"\",\"\",'Vnos podatkov'!$G$47^2)","v":""},"£ 1",null,{"$f":"IF(OR($F$20=\"\",$F$20>(0.8)^2,$F$20<(0.3)^2,$D$20=\"\",$D$20>(0.8)^2,$D$20<(0.3)^2,$B$20=\"\"),\"NE\",IF($B$20+$D$20+$F$20>1,\"NE\",\"DA\"))","v":"NE"}]
[]
["(4) Število preskusnih razdelkov tehtnice ne sme preseči največjega števila preskusnih razdelkov elekronske naprave"]
[]
[null,null,null,null,"nind","³","n(i) = Max(i) /e(i)"]
[null," Einbereichswaage",null,null,{"$f":"'Vnos podatkov'!G26","v":0},"³",{"$f":"IF('Vnos podatkov'!H11=0,0,'Vnos podatkov'!G11/'Vnos podatkov'!H11)","v":0}]
[null,"Dvorazdelčna tehtnica",null,"i = 1",{"$f":"IF('Vnos podatkov'!$G$26=\"\",\"\",'Vnos podatkov'!$G$26)","v":""},"³",{"$f":"IF('Vnos podatkov'!$H$12=\"\",\"\",IF('Vnos podatkov'!$H$12=0,\"\",'Vnos podatkov'!$G$12/'Vnos podatkov'!$H$12))","v":""},null,{"$f":"IF(OR($E$26=\"\",$E$26>100000000,$G$26=\"\"),\"NE\",IF($G$26>$E$26,\"NE\",\"DA\"))","v":"NE"}]
[null,null,null,"i = 2",{"$f":"IF('Vnos podatkov'!$G$26=\"\",\"\",'Vnos podatkov'!$G$26)","v":""},"³",{"$f":"IF('Vnos podatkov'!$H$13=\"\",\"\",IF('Vnos podatkov'!$H$13=0,\"\",'Vnos podatkov'!$G$13/'Vnos podatkov'!$H$13))","v":""},null,{"$f":"IF(OR($E$27=\"\",$E$27>100000000,$G$27=\"\"),\"NE\",IF($G$27>$E$27,\"NE\",\"DA\"))","v":"NE"}]
[null,null,null,"i = 3",0,"³",0]
[]
[]
["(5) Največja zmogljivost merilnih celic (LC) mora biti združljiva z Max tehtnice "]
[]
["Faktor Q (EN 45 501 No 4.12.1) :   Q = (Max2+DL+IZSR+NUD+T+)/Max2 =",null,null,null,null,null,{"$f":"IF('Vnos podatkov'!$G$19=\"\",\"se zahteva DL\",IF('Vnos podatkov'!$G$18=\"\",\"se zahteva NUD\",IF('Vnos podatkov'!$G$17=\"\",\"se zaht.IZRS\",IF('Vnos podatkov'!$G$13=\"\",\"\",IF('Vnos podatkov'!$G$13=0,\"\",('Vnos podatkov'!$G$13+'Vnos podatkov'!$G$17+'Vnos podatkov'!$G$18+'Vnos podatkov'!$G$19+'Vnos podatkov'!$G$20)/'Vnos podatkov'!$G$13)))))","v":"se zahteva DL"}]
[null,null,null,"(Q*Max2*R)/N",null,"£","Emax"]
[null,null,null,{"$f":"IF('Vnos podatkov'!$G$15=\"\",\"se zahteva R\",IF($G$33=\"\",\"se zahteva Q\",IF('Vnos podatkov'!$G$16=\"\",\"se zahteva N\",($G$33*'Vnos podatkov'!$G$13*'Vnos podatkov'!$G$15)/'Vnos podatkov'!$G$16)))","v":"se zahteva R"},null,"£",{"$f":"IF('Vnos podatkov'!$G$37=\"\",\"\",'Vnos podatkov'!$G$37)","v":""},null,{"$f":"IF(OR($G$33=\"\",$G$35=\"\",$G$35>10000000),\"NE\",IF($D$35>$G$35,\"NE\",\"DA\"))","v":"NE"}]
[]
["(6a) Združljivost največjega števila preskusnih razdelkov merilnih celic (LC) s številom preskusnih razdelkov tehtnice "]
[]
[null,null,null,null,"nLC","³","n(i) = Max(i) /e(i)"]
[null," Einbereichswaage",null,null,{"$f":"'Vnos podatkov'!G40","v":0},"³",{"$f":"IF('Vnos podatkov'!H11=0,0,'Vnos podatkov'!G11/'Vnos podatkov'!H11)","v":0}]
[null,"Dvorazdelčna tehtnica",null,"i = 1",{"$f":"IF('Vnos podatkov'!$G$40=\"\",\"\",'Vnos podatkov'!$G$40)","v":""},"³",{"$f":"IF('Vnos podatkov'!$H$12=\"\",\"\",IF('Vnos podatkov'!$H$12=0,\"\",'Vnos podatkov'!$G$12/'Vnos podatkov'!$H$12))","v":""},null,{"$f":"IF(OR($G$41=0,$G$41=\"\",$E$41=\"\",$E$41>100000000),\"NE\",IF($G$41>$E$41,\"NE\",\"DA\"))","v":"NE"}]
[null,null,null,"i = 2",{"$f":"IF('Vnos podatkov'!$G$40=\"\",\"\",'Vnos podatkov'!$G$40)","v":""},"³",{"$f":"IF('Vnos podatkov'!$H$13=\"\",\"\",IF('Vnos podatkov'!$H$13=0,\"\",'Vnos podatkov'!$G$13/'Vnos podatkov'!$H$13))","v":""},null,{"$f":"IF(OR($G$42=0,$G$42=\"\",$E$42=\"\",$E$42>100000000),\"NE\",IF($G$42>$E$42,\"NE\",\"DA\"))","v":"NE"}]
[null,null,null,"i = 3",0,"³",0]
[]
["(6b) Združljivost najmanj. Izhod. signala merilnih(e) celic(e) (LC) pri mrtvem bremenu s preskunim razdelkom več razdelčne tehtnice"]
[]
[null,null,null,"nLC ali Z=Emax/(2*DR) ",null,"³","Max2 / e1"]
[null,null,null,{"$f":"IF('Vnos podatkov'!$G$43<>0,'Vnos podatkov'!$G$43,(IF('Vnos podatkov'!$G$44<>0,'Vnos podatkov'!$G$37/(2*'Vnos podatkov'!$G$44),'Vnos podatkov'!$G$40)))","v":0},null,"³",{"$f":"IF('Vnos podatkov'!$H$12=\"\",\"\",IF('Vnos podatkov'!$H$12=0,\"\",'Vnos podatkov'!$G$13/'Vnos podatkov'!$H$12))","v":""},null,{"$f":"IF(D48>10000000,\"NE\",IF($G$48=\"\",\"NE\",IF($G$48>$D$48,\"NE\",\"DA\")))","v":"NE"}]
[]
["(6b) Rückkehr des Vorlastsignals der WZ und kleinster Eichwert e1 einer Mehrbereichswaage"]
[]
[null,null,null,"nLC oder Z=Emax/(2*DR) ",null,"³","0,4*Maxr/e1"]
[null,null,null,0,null,"³",0]
[]
["(6d) Združljivost najmanjšega mrtvega bremena merilnih celic (LC) in dejanskega mrtvega bremena sprejemnika bremena"]
[]
[null,null,null,null,"DL*R/N","³","Emin"]
[null,null,null,null,{"$f":"IF('Vnos podatkov'!$G$16=\"\",\"\",IF('Vnos podatkov'!$G$16=0,\"\",'Vnos podatkov'!$G$19*'Vnos podatkov'!$G$15/'Vnos podatkov'!$G$16))","v":""},"³",{"$f":"IF('Vnos podatkov'!$G$38=\"\",\"\",'Vnos podatkov'!$G$38)","v":""},null,{"$f":"IF(OR($E$58=\"\",$G$58=\"\"),\"NE\",IF($G$58>$E$58,\"NE\",\"DA\"))","v":"NE"}]
[]
["(7) Najmanjši razdelek merilnih celic (LC) mora biti združljiv s preskusnim razdelkom tehtnice "]
[]
[null,null,null,null,"e1* R /ÖN","³","vmin= Emax/Y"]
[null,null,null,null,{"$f":"IF('Vnos podatkov'!$G$16=\"\",\"\",IF('Vnos podatkov'!$G$16=0,\"\",'Vnos podatkov'!$H$12*'Vnos podatkov'!$G$15/'Vnos podatkov'!$G$16^0.5))","v":""},"³",{"$f":"IF('Vnos podatkov'!$G$37=\"\",\"\",IF('Vnos podatkov'!$G$42<>0,'Vnos podatkov'!$G$37/'Vnos podatkov'!$G$42,IF('Vnos podatkov'!$G$41<>0,'Vnos podatkov'!$G$41,IF('Vnos podatkov'!$G$40=0,\"\",'Vnos podatkov'!$G$37/'Vnos podatkov'!$G$40))))","v":""},null,{"$f":"IF(OR($E$63=\"\",$G$63=\"\"),\"NE\",IF($G$63>$E$63,\"NE\",\"DA\"))","v":"NE"}]
[]
["(8) Dej. vhod. signal na preskusni razdelek tehtnice ne sme biti manjši od najmanj. vh. sig. na preskusni razdelek elektr. naprave"]
[]
[null,null,"najmanjši vhodni signal","U = C*Uexc*R*DL/(Emax *N)",null,"³","Umin"]
[null,null,"(neobremenjena tehtnica)",{"$f":"IF('Vnos podatkov'!$G$39=\"\",\"\",IF(OR('Vnos podatkov'!$G$37=0,'Vnos podatkov'!$G$16=0),\"\",'Vnos podatkov'!$G$39*'Vnos podatkov'!$G$27*'Vnos podatkov'!$G$15*'Vnos podatkov'!$G$19/('Vnos podatkov'!$G$37*'Vnos podatkov'!$G$16)))","v":""},null,"³",{"$f":"IF('Vnos podatkov'!$G$28=\"\",\"\",'Vnos podatkov'!$G$28)","v":""},null,{"$f":"IF(OR($D$68>1000000,$G$68=\"\",$D$68=\"\"),\"NE\",IF($G$68>$D$68,\"NE\",\"DA\"))","v":"NE"}]
[]
[null,null,"vhodni signal na preskusni razdelek","Du = C*Uexc*R*e/(Emax *N)",null,"³","Dumin"]
[null,null,null,{"$f":"IF('Vnos podatkov'!$G$39=\"\",\"\",IF(OR('Vnos podatkov'!$G$37=0,'Vnos podatkov'!$G$16=0),\"\",'Vnos podatkov'!$G$39*1000*'Vnos podatkov'!$G$27*'Vnos podatkov'!$G$15*'Vnos podatkov'!$H$12/('Vnos podatkov'!$G$37*'Vnos podatkov'!$G$16)))","v":""},null,"³",{"$f":"'Vnos podatkov'!$G$29","v":0},null,{"$f":"IF(OR($D$71>1000000,$G$71=\"\",$D$71=\"\"),\"NE\",IF($G$71>$D$71,\"NE\",\"DA\"))","v":"NE"}]
[]
["(9) Dejanska upornost merilnih celic (LC) mora biti znotraj dopustnega območja upornosti za elektronsko napravo"]
[]
[null,null,"RLmin","£","RLC / N","£","RLmax"]
[null,null,{"$f":"IF('Vnos podatkov'!$G$30=\"\",\"se zahteva \",'Vnos podatkov'!$G$30)","v":"se zahteva "},"£",{"$f":"IF('Vnos podatkov'!G45=\"\",\"se zaht.R LC\",IF('Vnos podatkov'!$G$16=\"\",\"\",IF('Vnos podatkov'!$G$16=0,\"\",'Vnos podatkov'!$G$45/'Vnos podatkov'!$G$16)))","v":"se zaht.R LC"},"£",{"$f":"IF('Vnos podatkov'!$H$30>1000000,\"se zahteva \",IF('Vnos podatkov'!$H$30=\"\",\"se zahteva \",'Vnos podatkov'!$H$30))","v":"se zahteva "},null,{"$f":"IF($C$76=0,\"NE\",IF($G$76=\"sezahteva\",\"NE\",IF($E$76=\"\",\"NE\",IF($E$76<$C$76,\"NE\",IF($E$76>$G$76,\"NE\",\"DA\")))))","v":"NE"}]
[]
["(10) Dolžina kabla na površino preseka kabla ne sme preseči vrednosti navedene pri elektronski napravi  "]
[]
[null,null,null,null,"(L/A)","£","(L/A)max"]
[null,null,null,null,{"$f":"IF(OR('Vnos podatkov'!$G$23=\"\",'Vnos podatkov'!$G$23=0),0,'Vnos podatkov'!$G$22/'Vnos podatkov'!$G$23)","v":0},"£",{"$f":"IF('Vnos podatkov'!$G$34=\"\",\"\",'Vnos podatkov'!$G$34)","v":""},null,{"$f":"IF($G$81>1000000,\"NE\",IF($G$81=\"\",\"NE\",IF($G$81<$E$81,\"NE\",\"DA\")))","v":"NE"}]
[]
[null,null,null,null,null,null,null,null,"stran 5 od 6"]
["Izračun za dvorazdelčno tehtnico "]

{"sheet":"Trorazdelčne tehtnice","index":5,"n_rows":84,"n_cols":9,"rows_kept":84,"cut":false,"hidden":false,"merged":[[34,3,34,4],[32,0,32,5],[70,3,70,4],[69,3,69,4],[47,3,47,4],[52,3,52,4],[66,3,66,4],[67,3,67,4]]}
["Urad RS za meroslovje"]
[]
[]
["b) Pregled skladnosti - Trorazdelčne tehtnice"]
[]
["(1) Razred točnosti tehtnice (WI) združljiv z razredom elektronske naprave (IND) in merilnih(e) celic(e) (LC)"]
[null,{"$f":"IF(B9=\"\",5,IF('Vnos podatkov'!G36=\"A\",1,IF('Vnos podatkov'!G36=\"B\",2,IF('Vnos podatkov'!G36=\"C\",3,IF('Vnos podatkov'!G36=\"D\",4,0)))))","v":5},null,{"$f":"IF(D9=\"\",5,IF('Vnos podatkov'!G25=\"I\",1,IF('Vnos podatkov'!G25=\"II\",2,IF('Vnos podatkov'!G25=\"III\",3,IF('Vnos podatkov'!G25=\"IIII\",4,0)))))","v":5},null,null,{"$f":"IF(G9=\"\",0,IF('Vnos podatkov'!G10=\"I\",1,IF('Vnos podatkov'!G10=\"II\",2,IF('Vnos podatkov'!G10=\"III\",3,IF('Vnos podatkov'!G10=\"IIII\",4,0)))))","v":0}]
[null,"LC","&","IND","enako ali bolje",null,"WI"]
[null,{"$f":"IF('Vnos podatkov'!$G$36=\"\",\"\",'Vnos podatkov'!$G$36)","v":""},"&",{"$f":"IF('Vnos podatkov'!$G$25=\"\",\"\",'Vnos podatkov'!$G$25)","v":""},"enako ali bolje",null,{"$f":"IF('Vnos podatkov'!$G$10=\"\",\"\",'Vnos podatkov'!$G$10)","v":""},null,{"$f":"IF($G$7=0,\"NE\",IF($B$7>$G$7,\"NE\",IF($D$7>$G$7,\"NE\",\"DA\")))","v":"NE"}]
[]
["(2) Temperaturno območje tehtnice (WI) v primerjavi s temp. območjem elektronske naprave (IND) in merilnih celic (LC) "]
[]
[null,null,"LC",null,"IND",null,"WI"]
[null,"Tmin",{"$f":"IF('Vnos podatkov'!$G$46=\"\",\"\",'Vnos podatkov'!$G$46)","v":""},"&",{"$f":"IF('Vnos podatkov'!$G$31=\"\",\"\",'Vnos podatkov'!$G$31)","v":""},"£",{"$f":"IF('Vnos podatkov'!$G$21=\"\",\"\",'Vnos podatkov'!$G$21)","v":""},null,{"$f":"IF(OR($G$14=\"\",$G$14>100),\"NE\",IF($C$14>$G$14,\"NE\",IF($E$14>$G$14,\"NE\",\"DA\")))","v":"NE"}]
[null,"Tmax",{"$f":"IF('Vnos podatkov'!$H$46=\"\",\"\",'Vnos podatkov'!$H$46)","v":""},"&",{"$f":"IF('Vnos podatkov'!$H$31=\"\",\"\",'Vnos podatkov'!$H$31)","v":""},"³",{"$f":"IF('Vnos podatkov'!$H$21=\"\",\"\",'Vnos podatkov'!$H$21)","v":""},null,{"$f":"IF(OR($C15>150,$E$15>100),\"NE\",IF($G$15=\"\",\"NO\",IF($C$15<$G$15,\"NE\",IF($E$15<$G$15,\"NE\",\"DA\"))))","v":"NE"}]
[]
["(3) Vsota kvadratov deležev pi najv. dop. pogreška merilnih celic (LC), povezovalnih elem. in elektr. naprave"]
[]
[null,"pcon2","+","pind2","+","pLC2","£ 1"]
[null,{"$f":"IF('Vnos podatkov'!$G$49=\"\",\"\",'Vnos podatkov'!$G$49^2)","v":""},"+",{"$f":"IF('Vnos podatkov'!$G$32=\"\",\"\",'Vnos podatkov'!$G$32^2)","v":""},"+",{"$f":"IF('Vnos podatkov'!$G$47=\"\",\"\",'Vnos podatkov'!$G$47^2)","v":""},"£ 1",null,{"$f":"IF(OR($F$20=\"\",$F$20>(0.8)^2,$F$20<(0.3)^2,$D$20=\"\",$D$20>(0.8)^2,$D$20<(0.3)^2,$B$20=\"\"),\"NE\",IF($B$20+$D$20+$F$20>1,\"NE\",\"DA\"))","v":"NE"}]
[]
["(4) Število preskusnih razdelkov tehtnice ne sme preseči največjega števila preskusnih razdelkov elekronske naprave"]
[]
[null,null,null,null,"nind","³","n(i) = Max(i) /e(i)"]
[null," Einbereichswaage",null,null,{"$f":"'Vnos podatkov'!G26","v":0},"³",{"$f":"IF('Vnos podatkov'!H11=0,0,'Vnos podatkov'!G11/'Vnos podatkov'!H11)","v":0}]
[null,"Trorazdelčna tehtnica",null,"i = 1",{"$f":"IF('Vnos podatkov'!$G$26=\"\",\"\",'Vnos podatkov'!$G$26)","v":""},"³",{"$f":"IF('Vnos podatkov'!$H$12=\"\",\"\",IF('Vnos podatkov'!$H$12=0,\"\",'Vnos podatkov'!$G$12/'Vnos podatkov'!$H$12))","v":""},null,{"$f":"IF(OR($E$26=\"\",$E$26>100000000,$G$26=\"\"),\"NE\",IF($G$26>$E$26,\"NE\",\"DA\"))","v":"NE"}]
[null,null,null,"i = 2",{"$f":"IF('Vnos podatkov'!$G$26=\"\",\"\",'Vnos podatkov'!$G$26)","v":""},"³",{"$f":"IF('Vnos podatkov'!$H$13=\"\",\"\",IF('Vnos podatkov'!$H$13=0,\"\",'Vnos podatkov'!$G$13/'Vnos podatkov'!$H$13))","v":""},null,{"$f":"IF(OR($E$27=\"\",$E$27>100000000,$G$27=\"\"),\"NE\",IF($G$27>$E$27,\"NE\",\"DA\"))","v":"NE"}]
[null,null,null,"i = 3",{"$f":"IF('Vnos podatkov'!$G$26=\"\",\"\",'Vnos podatkov'!$G$26)","v":""},"³",{"$f":"IF('Vnos podatkov'!$H$14=\"\",\"\",IF('Vnos podatkov'!$H$14=0,\"\",'Vnos podatkov'!$G$14/'Vnos podatkov'!$H$14))","v":""},null,{"$f":"IF(OR($E$28=\"\",$E$28>100000000,$G$28=\"\"),\"NE\",IF($G$28>$E$28,\"NE\",\"DA\"))","v":"NE"}]
[]
[]
["(5) Največja zmogljivost merilnih celic (LC) mora biti združljiva z Max tehtnice "]
[]
["Faktor Q (EN 45 501 No 4.12.1) :   Q = (Max3+DL+IZSR+NUD+T+)/Max3 =",null,null,null,null,null,{"$f":"IF('Vnos podatkov'!$G$19=\"\",\"se zahteva DL\",IF('Vnos podatkov'!$G$18=\"\",\"se zaht.NUD\",IF('Vnos podatkov'!$G$17=\"\",\"se zahteva IZRS\",IF('Vnos podatkov'!$G$14=\"\",\"\",IF('Vnos podatkov'!$G$14=0,\"\",('Vnos podatkov'!$G$14+'Vnos podatkov'!$G$17+'Vnos podatkov'!$G$18+'Vnos podatkov'!$G$19+'Vnos podatkov'!$G$20)/'Vnos podatkov'!$G$14)))))","v":"se zahteva DL"}]
[null,null,null,"(Q*Max3*R)/N",null,"£","Emax"]
[null,null,null,{"$f":"IF('Vnos podatkov'!$G$15=\"\",\"se zahteva R\",IF($G$33=\"\",\"se zahteva Q\",IF('Vnos podatkov'!$G$16=\"\",\"se zahteva N\",($G$33*'Vnos podatkov'!$G$14*'Vnos podatkov'!$G$15)/'Vnos podatkov'!$G$16)))","v":"se zahteva R"},null,"£",{"$f":"IF('Vnos podatkov'!$G$37=\"\",\"\",'Vnos podatkov'!$G$37)","v":""},null,{"$f":"IF(OR($G$33=\"\",$G$35=\"\",$G$35>10000000),\"NE\",IF($D$35>$G$35,\"NE\",\"DA\"))","v":"NE"}]
[]
["(6a) Združljivost največjega števila preskusnih razdelkov merilnih celic (LC) s številom preskusnih razdelkov tehtnice "]
[]
[null,null,null,null,"nLC","³","n(i) = Max(i) /e(i)"]
[null," Einbereichswaage",null,null,{"$f":"'Vnos podatkov'!G40","v":0},"³",{"$f":"IF('Vnos podatkov'!H11=0,0,'Vnos podatkov'!G11/'Vnos podatkov'!H11)","v":0}]
[null,"Trorazdelčna tehtnica",null,"i = 1",{"$f":"IF('Vnos podatkov'!$G$40=\"\",\"\",'Vnos podatkov'!$G$40)","v":""},"³",{"$f":"IF('Vnos podatkov'!$H$12=\"\",\"\",IF('Vnos podatkov'!$H$12=0,\"\",'Vnos podatkov'!$G$12/'Vnos podatkov'!$H$12))","v":""},null,{"$f":"IF(OR($G$41=0,$G$41=\"\",$E$41=\"\",$E$41>100000000),\"NE\",IF($G$41>$E$41,\"NE\",\"DA\"))","v":"NE"}]
[null,null,null,"i = 2",{"$f":"IF('Vnos podatkov'!$G$40=\"\",\"\",'Vnos podatkov'!$G$40)","v":""},"³",{"$f":"IF('Vnos podatkov'!$H$13=\"\",\"\",IF('Vnos podatkov'!$H$13=0,\"\",'Vnos podatkov'!$G$13/'Vnos podatkov'!$H$13))","v":""},null,{"$f":"IF(OR($G$42=0,$G$42=\"\",$E$42=\"\",$E$42>100000000),\"NE\",IF($G$42>$E$42,\"NE\",\"DA\"))","v":"NE"}]
[null,null,null,"i = 3",{"$f":"IF('Vnos podatkov'!$G$40=\"\",\"\",'Vnos podatkov'!$G$40)","v":""},"³",{"$f":"IF('Vnos podatkov'!$H$14=\"\",\"\",IF('Vnos podatkov'!$H$14=0,\"\",'Vnos podatkov'!$G$14/'Vnos podatkov'!$H$14))","v":""},null,{"$f":"IF(OR($G$43=0,$G$43=\"\",$E$43=\"\",$E$43>100000000),\"NE\",IF($G$43>$E$43,\"NE\",\"DA\"))","v":"NE"}]
[]
["(6b) Združljivost najm. izhod. signala merilne celice pri mtrvem bremenu s preskunim razdelkom tehtnice z več vrednostmi razdelka"]
[]
[null,null,null,"nLC ali Z=Emax/(2*DR) ",null,"³","Max3 / e1"]
[null,null,null,{"$f":"IF('Vnos podatkov'!$G$43<>0,'Vnos podatkov'!$G$43,(IF('Vnos podatkov'!$G$44<>0,'Vnos podatkov'!$G$37/(2*'Vnos podatkov'!$G$44),'Vnos podatkov'!$G$40)))","v":0},null,"³",{"$f":"IF('Vnos podatkov'!$H$12=\"\",\"\",IF('Vnos podatkov'!$H$12=0,\"\",'Vnos podatkov'!$G$14/'Vnos podatkov'!$H$12))","v":""},null,{"$f":"IF(D48>10000000,\"NE\",IF($G$48=\"\",\"NE\",IF($G$48>$D$48,\"NE\",\"DA\")))","v":"NE"}]
[]
["(6c) Rückkehr des Vorlastsignals der WZ und kleinster Eichwert e1 einer Mehrbereichswaage"]
[]
[null,null,null,"nLC oder Z=Emax/(2*DR) ",null,"³","0,4*Maxr/e1"]
[null,null,null,0,null,"³",0]
[]
["(6d) Združljivost najmanjšega mrtvega bremena merilnih celic (LC) in dejanskega mrtvega bremena sprejemnika bremena"]
[]
[null,null,null,null,"DL*R/N","³","Emin"]
[null,null,null,null,{"$f":"IF('Vnos podatkov'!$G$16=\"\",\"\",IF('Vnos podatkov'!$G$16=0,\"\",'Vnos podatkov'!$G$19*'Vnos podatkov'!$G$15/'Vnos podatkov'!$G$16))","v":""},"³",{"$f":"IF('Vnos podatkov'!$G$38=\"\",\"\",'Vnos podatkov'!$G$38)","v":""},null,{"$f":"IF(OR($E$58=\"\",$G$58=\"\"),\"NE\",IF($G$58>$E$58,\"NE\",\"DA\"))","v":"NE"}]
[]
["(7) Najmanjši razdelek merilnih celic (LC) mora biti združljiv s preskusnim razdelkom tehtnice "]
[]
[null,null,null,null,"e1*R/ÖN","³","vmin= Emax/Y"]
[null,null,null,null,{"$f":"IF('Vnos podatkov'!$G$16=\"\",\"\",IF('Vnos podatkov'!$G$16=0,\"\",'Vnos podatkov'!$H$12*'Vnos podatkov'!$G$15/'Vnos podatkov'!$G$16^0.5))","v":""},"³",{"$f":"IF('Vnos podatkov'!$G$37=\"\",\"\",IF('Vnos podatkov'!$G$42<>0,'Vnos podatkov'!$G$37/'Vnos podatkov'!$G$42,IF('Vnos podatkov'!$G$41<>0,'Vnos podatkov'!$G$41,IF('Vnos podatkov'!$G$40=0,\"\",'Vnos podatkov'!$G$37/'Vnos podatkov'!$G$40))))","v":""},null,{"$f":"IF(OR($E$63=\"\",$G$63=\"\"),\"NE\",IF($G$63>$E$63,\"NE\",\"DA\"))","v":"NE"}]
[]
["(8) Dej. vhod. signal na preskusni razdelek tehtnice ne sme biti manjši od najmanj. vh. sig. na preskusni razdelek elektr. naprave"]
[]
[null,null,"najmanjši vhodni signal","U= C*Uexc*R*DL/(Emax *N)",null,"³","Umin"]
[null,null,"(neobremenjena tehtnica)",{"$f":"IF('Vnos podatkov'!$G$39=\"\",\"\",IF(OR('Vnos podatkov'!$G$37=0,'Vnos podatkov'!$G$16=0),\"\",'Vnos podatkov'!$G$39*'Vnos podatkov'!$G$27*'Vnos podatkov'!$G$15*'Vnos podatkov'!$G$19/('Vnos podatkov'!$G$37*'Vnos podatkov'!$G$16)))","v":""},null,"³",{"$f":"IF('Vnos podatkov'!$G$28=\"\",\"\",'Vnos podatkov'!$G$28)","v":""},null,{"$f":"IF(OR($D$68>1000000,$G$68=\"\",$D$68=\"\"),\"NE\",IF($G$68>$D$68,\"NE\",\"DA\"))","v":"NE"}]
[]
[null,null,"vhodni signal na preskusni razdelek","Du = C*Uexc*R*e/(Emax *N)",null,"³","Dumin"]
[null,null,null,{"$f":"IF('Vnos podatkov'!$G$39=\"\",\"\",IF(OR('Vnos podatkov'!$G$37=0,'Vnos podatkov'!$G$16=0),\"\",'Vnos podatkov'!$G$39*1000*'Vnos podatkov'!$G$27*'Vnos podatkov'!$G$15*'Vnos podatkov'!$H$12/('Vnos podatkov'!$G$37*'Vnos podatkov'!$G$16)))","v":""},null,"³",{"$f":"'Vnos podatkov'!$G$29","v":0},null,{"$f":"IF(OR($D$71>1000000,$G$71=\"\",$D$71=\"\"),\"NE\",IF($G$71>$D$71,\"NE\",\"DA\"))","v":"NE"}]
[]
["(9) Dejanska upornost merilnih celic (LC) mora biti znotraj dopustnega območja upornosti za elektronsko napravo"]
[]
[null,null,"RLmin","£","RLC / N","£","RLmax"]
[null,null,{"$f":"IF('Vnos podatkov'!$G$30=\"\",\"se zahteva \",'Vnos podatkov'!$G$30)","v":"se zahteva "},"£",{"$f":"IF('Vnos podatkov'!G45=\"\",\"se zaht.R LC\",IF('Vnos podatkov'!$G$16=\"\",\"\",IF('Vnos podatkov'!$G$16=0,\"\",'Vnos podatkov'!$G$45/'Vnos podatkov'!$G$16)))","v":"se zaht.R LC"},"£",{"$f":"IF('Vnos podatkov'!$H$30>1000000,\"se zahteva \",IF('Vnos podatkov'!$H$30=\"\",\"se zahteva \",'Vnos podatkov'!$H$30))","v":"se zahteva "},null,{"$f":"IF($C$76=0,\"NE\",IF($G$76=\"se zahteva\",\"NE\",IF($E$76=\"\",\"NE\",IF($E$76<$C$76,\"NE\",IF($E$76>$G$76,\"NE\",\"DA\")))))","v":"NE"}]
[]
["(10) Dolžina kabla na površino preseka ne sme preseči vrednosti navedene pri elektronski napravi  "]
[]
[null,null,null,null,"(L/A)","£","(L/A)max"]
[null,null,null,null,{"$f":"IF(OR('Vnos podatkov'!$G$23=\"\",'Vnos podatkov'!$G$23=0),0,'Vnos podatkov'!$G$22/'Vnos podatkov'!$G$23)","v":0},"£",{"$f":"IF('Vnos podatkov'!$G$34=\"\",\"\",'Vnos podatkov'!$G$34)","v":""},null,{"$f":"IF($G$81>1000000,\"NE\",IF($G$81=\"\",\"NE\",IF($G$81<$E$81,\"NE\",\"DA\")))","v":"NE"}]
[]
[null,null,null,null,null,null,null,null,"stran 6 od 6"]
["Izračun za trorazdelčno tehtnico "]

{"sheet":"Tabelle1","index":6,"n_rows":10,"n_cols":1,"rows_kept":10,"cut":false,"hidden":true,"merged":[]}
[]
["enoobmočna tehtnica"]
["dvoobmočna tehtnica"]
["troobmočna tehtnica"]
["dvorazdelčna tehtnica"]
["trorazdelčna tehtnica"]
[]
[]
[]
[5]